[Event "4th Baskent University Open 2019"]
[Site "Ankara"]
[Date "2019.06.20"]
[Round "6"]
[White "Ozbag, Berat"]
[Black "Duru, Ipek"]
[Result "0-1"]
[ECO "E14"]
[WhiteElo "1666"]
[BlackElo "1551"]
[Annotator "NA RC"]
[PlyCount "210"]
[EventDate "2019.06.18"]
[EventType "swiss"]
[EventCountry "TUR"]
[SourceTitle "playchess.com"]
[Source "ChessBase"]
[SourceQuality "1"]
[TimeControl "5400+30"]

1. d4 {[%emt 0:10:30]} d5 {[%emt 0:00:30]} 2. c4 {[%emt 0:00:30]} e6 {[%emt 0:00:00]} 3. Nf3 {[%emt 0:00:30]} Nf6 {[%emt 0:00:00]} 4. e3 {[%emt 0:00:30]} b6 {[%emt 0:00:30]} 5. Nbd2 {[%emt 0:00:30]} Bb7 {[%emt 0:00:00]} 6. Bd3 {[%emt 0:00:00]} c5 {[%emt 0:00:00]} 7. O-O {[%emt 0:00:00]} Nc6 {[%emt 0:00:30]} 8. b3 {[%emt 0:00:00]} dxc4 {[%emt 0:01:30]} 9. Nxc4 {[%emt 0:01:00]} cxd4 {[%emt 0:01:30]} 10. Bb2 {[%emt 0:00:00]} dxe3 {[%emt 0:08:30]} 11. Nxe3 {[%emt 0:02:00]} Be7 {[%emt 0:01:30]} 12. Qe2 {[%emt 0:00:30]} O-O {[%emt 0:00:30]} 13. Rfd1 {[%emt 0:00:30]} Qb8 {[%emt 0:07:30]} 14. Rac1 {[%emt 0:03:30]} Rd8 {[%emt 0:00:30]} 15. Ng5 {[%emt 0:09:30]} h6 {[%emt 0:01:30]} 16. Ne4 {[%emt 0:00:30]} Nxe4 {[%emt 0:02:30]} 17. Bxe4 {[%emt 0:00:00]} Rxd1+ {[%emt 0:00:30]} 18. Qxd1 {[%emt 0:02:00]} Bc5 {[%emt 0:02:30]} 19. Ng4 {[%emt 0:06:30]} Qd8 {[%emt 0:02:30]} 20. Qf3 {[%emt 0:10:30]} Rc8 {[%emt 0:00:30]} 21. Qg3 {[%emt 0:02:30]} Qd2 {[%emt 0:04:30]} 22. Rb1 {[%emt 0:17:30]} Bd4 {[%emt 0:02:30]} 23. Ba3 {[%emt 0:08:30]} b5 {[%emt 0:06:30]} 24. h4 {[%emt 0:00:30]} b4 {[%emt 0:01:30]} 25. Nxh6+ {[%emt 0:06:34]} Qxh6 {[%emt 0:01:30]} 26. Bc1 {[%emt 0:01:11]} Qf6 {[%emt 0:01:30]} 27. Bg5 {[%emt 0:01:09]} Qe5 {[%emt 0:00:00]} 28. Qf3 {[%emt 0:00:38]} f5 {[%emt 0:01:00]} 29. Bd3 {[%emt 0:01:56]} Nd8 {[%emt 0:04:30]} 30. Qf4 {[%emt 0:01:24]} Qxf4 {[%emt 0:00:30]} 31. Bxf4 {[%emt 0:00:02]} Be4 {[%emt 0:04:30]} 32. Bxe4 {[%emt 0:01:00]} fxe4 {[%emt 0:00:30]} 33. Re1 {[%emt 0:00:00]} e5 {[%emt 0:00:00]} 34. Rxe4 {[%emt 0:00:07]} Bxf2+ {[%emt 0:00:00]} 35. Kxf2 {[%emt 0:00:03]} exf4 {[%emt 0:01:30]} 36. Rxb4 {[%emt 0:00:11]} Ne6 {[%emt 0:00:30]} 37. Ra4 {[%emt 0:01:43]} Rc7 {[%emt 0:00:30]} 38. g3 {[%emt 0:00:03]} Rc2+ {[%emt 0:01:30]} 39. Kf3 {[%emt 0:00:46]} Rc3+ {[%emt 0:00:30]} 40. Kg4 {[%emt 0:00:00]} fxg3 {[%emt 0:00:30]} 41. Kf5 {[%emt 0:01:39]} Re3 {[%emt 0:02:30]} 42. Rg4 {[%emt 0:00:35]} Kf7 {[%emt 0:00:30]} 43. h5 {[%emt 0:00:17]} Rf3+ {[%emt 0:00:30]} 44. Ke5 {[%emt 0:00:27]} a5 {[%emt 0:00:30]} 45. b4 {[%emt 0:01:20]} Rc3 {[%emt 0:02:30]} 46. bxa5 {[%emt 0:00:35]} Rc5+ {[%emt 0:02:30]} 47. Kd6 {[%emt 0:00:01]} Rg5 {[%emt 0:01:30]} 48. Rxg5 {[%emt 0:01:23]} Nxg5 {[%emt 0:00:30]} 49. a6 {[%emt 0:00:01]} g2 {[%emt 0:00:30]} 50. a7 {[%emt 0:00:02]} g1=Q {[%emt 0:00:00]} 51. a8=Q {[%emt 0:00:04]} Qg3+ {[%emt 0:00:00]} 52. Kc5 {[%emt 0:00:53]} Ne6+ {[%emt 0:00:30]} 53. Kc4 {[%emt 0:01:06]} Qg4+ {[%emt 0:00:00]} 54. Kc3 {[%emt 0:01:27]} Qd4+ {[%emt 0:00:00]} 55. Kc2 {[%emt 0:00:32]} Qc5+ {[%emt 0:00:30]} 56. Kd2 {[%emt 0:00:12]} Qf2+ {[%emt 0:03:30]} 57. Kc3 {[%emt 0:00:17]} Qe3+ {[%emt 0:00:30]} 58. Kb4 {[%emt 0:00:58]} Qd4+ {[%emt 0:01:30]} 59. Kb3 {[%emt 0:01:00]} Nc5+ {[%emt 0:00:30]} 60. Kc2 {[%emt 0:00:25]} Qd3+ {[%emt 0:00:30]} 61. Kc1 {[%emt 0:00:53]} Qc3+ {[%emt 0:00:30]} 62. Kd1 {[%emt 0:00:17]} Qa1+ {[%emt 0:00:30]} 63. Kc2 {[%emt 0:00:23]} Qe5 {[%emt 0:01:30]} 64. Qa7+ {[%emt 0:01:32]} Kg8 {[%emt 0:00:30]} 65. Qa8+ {[%emt 0:04:16]} Kh7 {[%emt 0:00:30]} 66. Qf3 {[%emt 0:00:02]} Kh6 {[%emt 0:01:30]} 67. Qf8 {[%emt 0:00:05]} Kxh5 {[%emt 0:02:30]} 68. Qf3+ {[%emt 0:00:24]} Kg6 {[%emt 0:01:30]} 69. Qg2+ {[%emt 0:00:28]} Kf6 {[%emt 0:01:30]} 70. Qc6+ {[%emt 0:00:08]} Ke7 {[%emt 0:00:30]} 71. Qc8 {[%emt 0:02:20]} g5 {[%emt 0:01:30]} 72. Qg8 {[%emt 0:00:32]} Qe4+ {[%emt 0:01:30]} 73. Kd2 {[%emt 0:00:13]} Ne6 {[%emt 0:00:30]} 74. a4 {[%emt 0:01:13]} Qxa4 {[%emt 0:01:30]} 75. Ke2 {[%emt 0:00:27]} Qc4+ {[%emt 0:01:30]} 76. Kf2 {[%emt 0:00:10]} Qd4+ {[%emt 0:00:30]} 77. Kg3 {[%emt 0:00:16]} Qe5+ {[%emt 0:00:30]} 78. Kf2 {[%emt 0:00:36]} Qf5+ {[%emt 0:01:30]} 79. Kg3 {[%emt 0:00:11]} Qf4+ {[%emt 0:01:30]} 80. Kg2 {[%emt 0:00:04]} g4 {[%emt 0:00:30]} 81. Qh7+ {[%emt 0:00:38]} Kd6 {[%emt 0:02:30]} 82. Qd3+ {[%emt 0:00:03]} Nd4 {[%emt 0:00:30]} 83. Qa6+ {[%emt 0:00:20]} Ke5 {[%emt 0:01:47]} 84. Qa5+ {[%emt 0:00:03]} Kf6 {[%emt 0:00:30]} 85. Qd8+ {[%emt 0:00:12]} Ke6 {[%emt 0:02:28]} 86. Qc8+ {[%emt 0:01:53]} Ke5 {[%emt 0:01:07]} 87. Qb8+ {[%emt 0:01:32]} Ke4 {[%emt 0:00:34]} 88. Qb1+ {[%emt 0:00:15]} Ke3 {[%emt 0:02:23]} 89. Qc1+ {[%emt 0:01:35]} Ke4 {[%emt 0:00:03]} 90. Qb1+ {[%emt 0:00:01]} Kd5 {[%emt 0:00:20]} 91. Qa2+ {[%emt 0:00:26]} Kc5 {[%emt 0:01:23]} 92. Qa3+ {[%emt 0:01:29]} Kb5 {[%emt 0:00:41]} 93. Qd3+ {[%emt 0:00:42]} Kb4 {[%emt 0:00:38]} 94. Qb1+ {[%emt 0:00:35]} Nb3 {[%emt 0:00:29]} 95. Qe1+ {[%emt 0:00:17]} Ka3 {[%emt 0:00:21]} 96. Qe7+ {[%emt 0:00:19]} Ka2 {[%emt 0:00:34]} 97. Qa7+ {[%emt 0:00:26]} Kb1 {[%emt 0:00:36]} 98. Qg1+ {[%emt 0:00:35]} Nc1 {[%emt 0:00:07]} 99. Qb6+ {[%emt 0:00:02]} Kc2 {[%emt 0:00:25]} 100. Qc6+ {[%emt 0:00:49]} Kd2 {[%emt 0:00:17]} 101. Qd5+ {[%emt 0:00:21]} Nd3 {[%emt 0:00:45]} 102. Qa2+ {[%emt 0:01:10]} Ke3 {[%emt 0:00:13]} 103. Qa7+ {[%emt 0:00:07]} Qd4 {[%emt 0:00:06]} 104. Qc7 {[%emt 0:02:03]} Qe4+ {[%emt 0:00:15]} 105. Kg1 {[%emt 0:00:50]} Kf3 {[%emt 0:00:56]} 0-1

[Event "4th Baskent University Open 2019"]
[Site "Ankara"]
[Date "2019.06.20"]
[Round "6"]
[White "Yanikoglu, Omer"]
[Black "Sahin, Arda"]
[Result "0-1"]
[ECO "D05"]
[WhiteElo "1665"]
[BlackElo "1710"]
[Annotator "NA"]
[PlyCount "88"]
[EventDate "2019.06.18"]
[EventType "swiss"]
[EventCountry "TUR"]
[SourceTitle "playchess.com"]
[Source "ChessBase"]
[SourceQuality "1"]
[TimeControl "5400+30"]

1. Nf3 {[%emt 0:02:30]} d5 {[%emt 0:00:30]} 2. d4 {[%emt 0:00:30]} e6 {[%emt 0:00:00]} 3. b3 {[%emt 0:00:00]} Nf6 {[%emt 0:00:00]} 4. Nbd2 {[%emt 0:00:00]} c5 {[%emt 0:00:30]} 5. e3 {[%emt 0:00:30]} Nc6 {[%emt 0:00:30]} 6. Bb2 {[%emt 0:00:30]} Bd6 {[%emt 0:00:30]} 7. a3 {[%emt 0:00:00]} O-O {[%emt 0:02:30]} 8. Bd3 {[%emt 0:00:00]} b6 {[%emt 0:00:30]} 9. O-O {[%emt 0:00:30]} Bb7 {[%emt 0:00:30]} 10. h3 {[%emt 0:06:30]} Rc8 {[%emt 0:03:30]} 11. c4 {[%emt 0:00:30]} Qe7 {[%emt 0:14:30]} 12. Ne5 {[%emt 0:00:30]} Rfd8 {[%emt 0:05:30]} 13. Qe2 {[%emt 0:00:30]} cxd4 {[%emt 0:24:30]} 14. Nxc6 {[%emt 0:01:30]} Bxc6 {[%emt 0:00:00]} 15. exd4 {[%emt 0:00:30]} dxc4 {[%emt 0:07:00]} 16. Bxc4 {[%emt 0:03:30]} Nd5 {[%emt 0:11:30]} 17. Qg4 {[%emt 0:04:30]} f5 {[%emt 0:09:51]} 18. Qh5 {[%emt 0:00:30]} Nf4 {[%emt 0:00:30]} 19. Qxf5 {[%emt 0:00:30]} b5 {[%emt 0:02:42]} 20. Bxe6+ {[%emt 0:01:30]} Qxe6 {[%emt 0:00:39]} 21. Qxe6+ {[%emt 0:00:30]} Nxe6 {[%emt 0:00:02]} 22. b4 {[%emt 0:02:30]} Bd5 {[%emt 0:01:16]} 23. Rac1 {[%emt 0:00:30]} Nf4 {[%emt 0:00:11]} 24. Rxc8 {[%emt 0:05:30]} Rxc8 {[%emt 0:00:07]} 25. Rd1 {[%emt 0:07:30]} Rc2 {[%emt 0:01:01]} 26. Ba1 {[%emt 0:00:30]} Nxg2 {[%emt 0:00:30]} 27. Nf1 {[%emt 0:04:30]} Nf4 {[%emt 0:01:32]} 28. Ne3 {[%emt 0:01:30]} Nxh3+ {[%emt 0:01:50]} 29. Kf1 {[%emt 0:00:00]} Rxf2+ {[%emt 0:01:32]} 30. Ke1 {[%emt 0:00:00]} Be4 {[%emt 0:00:43]} 31. d5 {[%emt 0:02:30]} Bg3 {[%emt 0:00:29]} 32. Nf1 {[%emt 0:23:30]} Bh4 {[%emt 0:00:23]} 33. Be5 {[%emt 0:08:30]} Ng5 {[%emt 0:02:38]} 34. Ng3 {[%emt 0:02:30]} Rg2 {[%emt 0:02:06]} 35. Kf1 {[%emt 0:04:31]} Bxg3 {[%emt 0:00:22]} 36. Bxg3 {[%emt 0:00:34]} Rxg3 {[%emt 0:00:05]} 37. d6 {[%emt 0:00:28]} Rd3 {[%emt 0:02:10]} 38. Rc1 {[%emt 0:00:20]} Rxd6 {[%emt 0:00:20]} 39. Rc8+ {[%emt 0:00:30]} Kf7 {[%emt 0:00:00]} 40. Rc7+ {[%emt 0:00:14]} Kf6 {[%emt 0:00:01]} 41. Rxa7 {[%emt 0:00:00]} h5 {[%emt 0:00:16]} 42. a4 {[%emt 0:00:00]} bxa4 {[%emt 0:00:19]} 43. Rxa4 {[%emt 0:00:04]} h4 {[%emt 0:00:33]} 44. Ra2 {[%emt 0:00:19]} h3 {[%emt 0:00:20]} 0-1

[Event "4th Baskent University Open 2019"]
[Site "Ankara"]
[Date "2019.06.20"]
[Round "6"]
[White "Taban, Yagiz"]
[Black "Shapovalovi, Vasiko"]
[Result "1/2-1/2"]
[ECO "A05"]
[WhiteElo "1654"]
[BlackElo "1759"]
[Annotator "NA"]
[PlyCount "133"]
[EventDate "2019.06.18"]
[EventType "swiss"]
[EventCountry "TUR"]
[SourceTitle "playchess.com"]
[Source "ChessBase"]
[SourceQuality "1"]
[TimeControl "5400+30"]

1. Nf3 {[%emt 0:00:30]} Nf6 {[%emt 0:00:30]} 2. b3 {[%emt 0:00:00]} e6 {[%emt 0:00:30]} 3. Bb2 {[%emt 0:00:00]} b6 {[%emt 0:00:00]} 4. g3 {[%emt 0:01:30]} Bb7 {[%emt 0:01:00]} 5. Bg2 {[%emt 0:00:30]} Be7 {[%emt 0:00:30]} 6. d3 {[%emt 0:00:00]} O-O {[%emt 0:01:30]} 7. e4 {[%emt 0:01:00]} d6 {[%emt 0:01:30]} 8. Nbd2 {[%emt 0:00:30]} Nbd7 {[%emt 0:00:30]} 9. h4 {[%emt 0:00:30]} c5 {[%emt 0:03:30]} 10. Ng5 {[%emt 0:02:30]} e5 {[%emt 0:10:30]} 11. Nc4 {[%emt 0:04:30]} Re8 {[%emt 0:08:30]} 12. Ne3 {[%emt 0:05:30]} Bf8 {[%emt 0:02:30]} 13. f4 {[%emt 0:06:30]} d5 {[%emt 0:05:30]} 14. f5 {[%emt 0:04:30]} dxe4 {[%emt 0:03:30]} 15. dxe4 {[%emt 0:01:30]} b5 {[%emt 0:07:30]} 16. Qe2 {[%emt 0:06:30]} Qb6 {[%emt 0:07:30]} 17. O-O-O {[%emt 0:04:30]} c4 {[%emt 0:07:30]} 18. Kb1 {[%emt 0:12:30]} cxb3 {[%emt 0:03:30]} 19. cxb3 {[%emt 0:02:30]} Rad8 {[%emt 0:03:30]} 20. Ng4 {[%emt 0:13:30]} Nxg4 {[%emt 0:01:30]} 21. Qxg4 {[%emt 0:00:30]} Nf6 {[%emt 0:00:30]} 22. Qe2 {[%emt 0:00:30]} Rxd1+ {[%emt 0:02:30]} 23. Rxd1 {[%emt 0:00:00]} Bc5 {[%emt 0:00:30]} 24. g4 {[%emt 0:02:00]} Bf2 {[%emt 0:04:30]} 25. Nh3 {[%emt 0:00:30]} Bd4 {[%emt 0:02:30]} 26. g5 {[%emt 0:03:30]} Nd7 {[%emt 0:00:00]} 27. Bxd4 {[%emt 0:09:35]} exd4 {[%emt 0:00:00]} 28. Qd3 {[%emt 0:00:07]} Nc5 {[%emt 0:01:30]} 29. Qxd4 {[%emt 0:00:06]} Nxe4 {[%emt 0:00:30]} 30. Kb2 {[%emt 0:01:55]} Nc5 {[%emt 0:01:32]} 31. Bxb7 {[%emt 0:00:20]} Nxb7 {[%emt 0:00:28]} 32. Nf4 {[%emt 0:02:46]} Qxd4+ {[%emt 0:00:59]} 33. Rxd4 {[%emt 0:00:03]} Nc5 {[%emt 0:00:15]} 34. Nd5 {[%emt 0:01:52]} Kf8 {[%emt 0:03:13]} 35. f6 {[%emt 0:01:41]} Re2+ {[%emt 0:01:57]} 36. Kc3 {[%emt 0:02:16]} Ne6 {[%emt 0:00:29]} 37. Rb4 {[%emt 0:02:51]} a6 {[%emt 0:02:16]} 38. a4 {[%emt 0:01:50]} Re5 {[%emt 0:00:59]} 39. axb5 {[%emt 0:01:19]} a5 {[%emt 0:03:13]} 40. Rc4 {[%emt 0:02:20]} Rxd5 {[%emt 0:00:38]} 41. b6 {[%emt 0:00:33]} Nc5 {[%emt 0:00:59]} 42. b4 {[%emt 0:00:53]} axb4+ {[%emt 0:01:38]} 43. Kxb4 {[%emt 0:01:14]} Na6+ {[%emt 0:00:09]} 44. Ka4 {[%emt 0:00:12]} Rd8 {[%emt 0:00:37]} 45. b7 {[%emt 0:00:59]} gxf6 {[%emt 0:00:23]} 46. gxf6 {[%emt 0:00:22]} Ke8 {[%emt 0:00:33]} 47. Kb5 {[%emt 0:00:43]} Nb8 {[%emt 0:01:06]} 48. Kb6 {[%emt 0:03:06]} Nd7+ {[%emt 0:02:13]} 49. Kc7 {[%emt 0:00:30]} Nxf6 {[%emt 0:00:11]} 50. b8=Q {[%emt 0:00:48]} Rxb8 {[%emt 0:00:06]} 51. Kxb8 {[%emt 0:00:00]} Kf8 {[%emt 0:00:47]} 52. Kc7 {[%emt 0:00:28]} Kg7 {[%emt 0:00:03]} 53. Kd6 {[%emt 0:00:00]} Kg6 {[%emt 0:00:57]} 54. Ke5 {[%emt 0:00:17]} Nd7+ {[%emt 0:00:33]} 55. Kf4 {[%emt 0:00:11]} f6 {[%emt 0:00:32]} 56. Ra4 {[%emt 0:00:31]} Ne5 {[%emt 0:01:14]} 57. Ra7 {[%emt 0:00:54]} h5 {[%emt 0:00:21]} 58. Ra5 {[%emt 0:00:37]} Ng4 {[%emt 0:00:16]} 59. Rb5 {[%emt 0:00:35]} Ne5 {[%emt 0:00:18]} 60. Rb8 {[%emt 0:00:20]} Ng4 {[%emt 0:00:30]} 61. Rg8+ {[%emt 0:00:37]} Kh7 {[%emt 0:00:35]} 62. Ra8 {[%emt 0:00:30]} Kg6 {[%emt 0:00:00]} 63. Ra3 {[%emt 0:00:00]} Ne5 {[%emt 0:00:14]} 64. Rg3+ {[%emt 0:00:02]} Ng4 {[%emt 0:00:04]} 65. Rg1 {[%emt 0:00:36]} Kf7 {[%emt 0:01:06]} 66. Kf5 {[%emt 0:00:18]} Ne3+ {[%emt 0:00:10]} 67. Ke4 {[%emt 0:00:46]} 1/2-1/2

[Event "4th Baskent University Open 2019"]
[Site "Ankara"]
[Date "2019.06.20"]
[Round "6"]
[White "Celik, Meric"]
[Black "Uysal, Ugur"]
[Result "1-0"]
[ECO "A08"]
[WhiteElo "1650"]
[BlackElo "1644"]
[Annotator "NA"]
[PlyCount "67"]
[EventDate "2019.06.18"]
[EventType "swiss"]
[EventCountry "TUR"]
[SourceTitle "playchess.com"]
[Source "ChessBase"]
[SourceQuality "1"]
[TimeControl "5400+30"]

1. e4 {[%emt 0:00:30]} c5 {[%emt 0:00:30]} 2. Nf3 {[%emt 0:00:30]} e6 {[%emt 0:00:30]} 3. d3 {[%emt 0:00:00]} d5 {[%emt 0:00:30]} 4. Nbd2 {[%emt 0:00:00]} Nc6 {[%emt 0:00:00]} 5. g3 {[%emt 0:00:00]} g6 {[%emt 0:00:00]} 6. Bg2 {[%emt 0:00:00]} Bg7 {[%emt 0:00:30]} 7. O-O {[%emt 0:00:30]} Nge7 {[%emt 0:00:00]} 8. Re1 {[%emt 0:05:30]} O-O {[%emt 0:01:00]} 9. e5 {[%emt 0:00:30]} Qc7 {[%emt 0:04:30]} 10. Qe2 {[%emt 0:00:30]} b6 {[%emt 0:01:30]} 11. Nf1 {[%emt 0:04:30]} Nd4 {[%emt 0:11:30]} 12. Nxd4 {[%emt 0:00:30]} cxd4 {[%emt 0:00:30]} 13. Bf4 {[%emt 0:00:30]} Ba6 {[%emt 0:07:30]} 14. h4 {[%emt 0:01:30]} b5 {[%emt 0:18:30]} 15. Nh2 {[%emt 0:04:30]} Rac8 {[%emt 0:02:30]} 16. Rac1 {[%emt 0:19:30]} Qa5 {[%emt 0:03:30]} 17. a3 {[%emt 0:17:30]} Qb6 {[%emt 0:11:30]} 18. Qd2 {[%emt 0:07:30]} Kh8 {[%emt 0:05:30]} 19. h5 {[%emt 0:03:30]} Rfe8 {[%emt 0:01:30]} 20. Bf3 {[%emt 0:11:30]} Qc7 {[%emt 0:05:30]} 21. Bg4 {[%emt 0:05:00]} Nc6 {[%emt 0:01:30]} 22. Nf3 {[%emt 0:00:05]} Kg8 {[%emt 0:00:30]} 23. Kg2 {[%emt 0:00:22]} Bb7 {[%emt 0:01:30]} 24. Re2 {[%emt 0:03:22]} Rcd8 {[%emt 0:03:16]} 25. Rh1 {[%emt 0:01:20]} Rd7 {[%emt 0:02:38]} 26. Qc1 {[%emt 0:07:12]} Bh8 {[%emt 0:01:51]} 27. Qg1 {[%emt 0:00:20]} a5 {[%emt 0:08:08]} 28. Qh2 {[%emt 0:00:33]} b4 {[%emt 0:00:09]} 29. axb4 {[%emt 0:00:13]} g5 {[%emt 0:00:57]} 30. Bxg5 {[%emt 0:02:28]} Nxe5 {[%emt 0:00:17]} 31. Qh4 {[%emt 0:00:49]} Nxf3 {[%emt 0:01:24]} 32. Bxf3 {[%emt 0:00:06]} axb4 {[%emt 0:00:43]} 33. h6 {[%emt 0:00:26]} Qd6 {[%emt 0:05:54]} 34. Bf6 {[%emt 0:01:12]} 1-0

[Event "4th Baskent University Open 2019"]
[Site "Ankara"]
[Date "2019.06.20"]
[Round "6"]
[White "Sinay, Ahmet"]
[Black "Gocer, Onur Saygin"]
[Result "1-0"]
[ECO "A47"]
[WhiteElo "1636"]
[BlackElo "1595"]
[Annotator "NA"]
[PlyCount "85"]
[EventDate "2019.06.18"]
[EventType "swiss"]
[EventCountry "TUR"]
[SourceTitle "playchess.com"]
[Source "ChessBase"]
[SourceQuality "1"]
[TimeControl "5400+30"]

1. d4 {[%emt 0:00:30]} Nf6 {[%emt 0:00:30]} 2. Bf4 {[%emt 0:00:30]} e6 {[%emt 0:00:00]} 3. e3 {[%emt 0:00:00]} b6 {[%emt 0:00:00]} 4. Nf3 {[%emt 0:00:00]} Bb7 {[%emt 0:00:30]} 5. Be2 {[%emt 0:00:30]} Be7 {[%emt 0:00:30]} 6. h3 {[%emt 0:00:00]} d6 {[%emt 0:00:30]} 7. O-O {[%emt 0:01:00]} O-O {[%emt 0:00:30]} 8. Nbd2 {[%emt 0:00:30]} c5 {[%emt 0:00:30]} 9. c3 {[%emt 0:00:30]} a6 {[%emt 0:01:30]} 10. Re1 {[%emt 0:15:30]} Nc6 {[%emt 0:04:30]} 11. Bf1 {[%emt 0:02:30]} d5 {[%emt 0:00:30]} 12. Bh2 {[%emt 0:00:30]} Rc8 {[%emt 0:04:30]} 13. Ne5 {[%emt 0:14:30]} Nd7 {[%emt 0:07:30]} 14. Nxc6 {[%emt 0:02:30]} Rxc6 {[%emt 0:00:30]} 15. Bd3 {[%emt 0:03:30]} Bd6 {[%emt 0:04:30]} 16. Bxd6 {[%emt 0:00:30]} Rxd6 {[%emt 0:00:00]} 17. f4 {[%emt 0:02:30]} f5 {[%emt 0:02:00]} 18. Nf3 {[%emt 0:00:30]} Rc6 {[%emt 0:00:30]} 19. Kh2 {[%emt 0:01:30]} Rf6 {[%emt 0:01:30]} 20. Rf1 {[%emt 0:03:30]} Rc8 {[%emt 0:00:30]} 21. Ng5 {[%emt 0:02:30]} h6 {[%emt 0:01:30]} 22. Nf3 {[%emt 0:06:30]} Qe8 {[%emt 0:00:00]} 23. Qe1 {[%emt 0:00:30]} b5 {[%emt 0:06:00]} 24. Qh4 {[%emt 0:01:30]} Qe7 {[%emt 0:13:30]} 25. g4 {[%emt 0:04:30]} Rcf8 {[%emt 0:04:30]} 26. Ne5 {[%emt 0:01:30]} Nxe5 {[%emt 0:01:30]} 27. fxe5 {[%emt 0:00:30]} R6f7 {[%emt 0:03:30]} 28. Qxe7 {[%emt 0:00:30]} Rxe7 {[%emt 0:00:30]} 29. gxf5 {[%emt 0:00:30]} c4 {[%emt 0:00:00]} 30. Bc2 {[%emt 0:02:30]} Ref7 {[%emt 0:00:00]} 31. a4 {[%emt 0:02:30]} b4 {[%emt 0:04:30]} 32. cxb4 {[%emt 0:01:30]} exf5 {[%emt 0:00:30]} 33. Rac1 {[%emt 0:07:30]} f4 {[%emt 0:01:30]} 34. Bg6 {[%emt 0:00:30]} Re7 {[%emt 0:00:30]} 35. Rxf4 {[%emt 0:00:30]} Rxf4 {[%emt 0:00:30]} 36. exf4 {[%emt 0:00:30]} Bc6 {[%emt 0:00:30]} 37. b3 {[%emt 0:02:30]} Rb7 {[%emt 0:02:30]} 38. bxc4 {[%emt 0:00:00]} Rxb4 {[%emt 0:00:00]} 39. cxd5 {[%emt 0:01:00]} Rb2+ {[%emt 0:00:00]} 40. Rc2 {[%emt 0:00:00]} Rxc2+ {[%emt 0:00:30]} 41. Bxc2 {[%emt 0:00:00]} Bxd5 {[%emt 0:00:00]} 42. Kg3 {[%emt 0:00:00]} Kf7 {[%emt 0:00:00]} 43. a5 {[%emt 0:00:00]} 1-0

[Event "4th Baskent University Open 2019"]
[Site "Ankara"]
[Date "2019.06.20"]
[Round "6"]
[White "Sarginalp, Tuna"]
[Black "Sungu, Yagiz Kaan"]
[Result "1/2-1/2"]
[ECO "B52"]
[WhiteElo "1630"]
[BlackElo "1465"]
[Annotator "NA"]
[PlyCount "45"]
[EventDate "2019.06.18"]
[EventType "swiss"]
[EventCountry "TUR"]
[SourceTitle "playchess.com"]
[Source "ChessBase"]
[SourceQuality "1"]
[TimeControl "5400+30"]

1. e4 {[%emt 0:00:30]} c5 {[%emt 0:00:30]} 2. Nf3 {[%emt 0:01:30]} d6 {[%emt 0:02:30]} 3. Bb5+ {[%emt 0:00:30]} Bd7 {[%emt 0:01:30]} 4. Bxd7+ {[%emt 0:01:30]} Nxd7 {[%emt 0:00:30]} 5. O-O {[%emt 0:01:30]} g6 {[%emt 0:00:30]} 6. c3 {[%emt 0:00:30]} Bg7 {[%emt 0:02:30]} 7. d4 {[%emt 0:01:30]} Ngf6 {[%emt 0:01:30]} 8. Qe2 {[%emt 0:14:30]} e5 {[%emt 0:07:30]} 9. dxe5 {[%emt 0:03:30]} dxe5 {[%emt 0:00:30]} 10. Bg5 {[%emt 0:00:30]} Qc7 {[%emt 0:01:30]} 11. a4 {[%emt 0:06:30]} O-O {[%emt 0:02:30]} 12. Rd1 {[%emt 0:04:30]} Rfe8 {[%emt 0:07:30]} 13. Na3 {[%emt 0:02:30]} Qc6 {[%emt 0:01:30]} 14. Nc4 {[%emt 0:05:30]} Re6 {[%emt 0:16:30]} 15. Bxf6 {[%emt 0:08:30]} Bxf6 {[%emt 0:03:30]} 16. Rd5 {[%emt 0:04:30]} Nb6 {[%emt 0:07:30]} 17. Rd2 {[%emt 0:16:30]} Nxc4 {[%emt 0:11:30]} 18. Qxc4 {[%emt 0:00:00]} Rd6 {[%emt 0:01:30]} 19. Rad1 {[%emt 0:01:00]} Rad8 {[%emt 0:00:00]} 20. Kf1 {[%emt 0:03:30]} Rxd2 {[%emt 0:04:00]} 21. Rxd2 {[%emt 0:00:30]} Rxd2 {[%emt 0:01:30]} 22. Nxd2 {[%emt 0:00:30]} Qd7 {[%emt 0:00:30]} 23. Ke1 {[%emt 0:08:30]} 1/2-1/2

[Event "4th Baskent University Open 2019"]
[Site "Ankara"]
[Date "2019.06.20"]
[Round "6"]
[White "Elma, Muge"]
[Black "Keseroglu, Yigit Can"]
[Result "1-0"]
[ECO "D34"]
[WhiteElo "1618"]
[BlackElo "1559"]
[Annotator "NA"]
[PlyCount "75"]
[EventDate "2019.06.18"]
[EventType "swiss"]
[EventCountry "TUR"]
[SourceTitle "playchess.com"]
[Source "ChessBase"]
[SourceQuality "1"]
[TimeControl "5400+30"]

1. d4 {[%emt 0:00:30]} d5 {[%emt 0:00:30]} 2. c4 {[%emt 0:00:30]} e6 {[%emt 0:00:00]} 3. Nf3 {[%emt 0:00:00]} Nf6 {[%emt 0:00:00]} 4. g3 {[%emt 0:00:00]} Be7 {[%emt 0:00:00]} 5. Bg2 {[%emt 0:00:00]} O-O {[%emt 0:00:00]} 6. O-O {[%emt 0:00:00]} c5 {[%emt 0:05:30]} 7. cxd5 {[%emt 0:00:00]} exd5 {[%emt 0:00:30]} 8. Nc3 {[%emt 0:01:00]} Nc6 {[%emt 0:00:30]} 9. a3 {[%emt 0:00:00]} h6 {[%emt 0:02:30]} 10. dxc5 {[%emt 0:04:00]} a5 {[%emt 0:05:30]} 11. Be3 {[%emt 0:06:30]} Bg4 {[%emt 0:02:30]} 12. Nd4 {[%emt 0:00:30]} Rb8 {[%emt 0:27:30]} 13. h3 {[%emt 0:04:30]} Be6 {[%emt 0:01:30]} 14. Ncb5 {[%emt 0:06:30]} Qd7 {[%emt 0:02:30]} 15. Kh2 {[%emt 0:03:30]} Ne4 {[%emt 0:06:30]} 16. Bxe4 {[%emt 0:08:30]} dxe4 {[%emt 0:00:30]} 17. Nxe6 {[%emt 0:00:30]} Qxe6 {[%emt 0:00:30]} 18. Qa4 {[%emt 0:02:30]} Bg5 {[%emt 0:13:30]} 19. Bxg5 {[%emt 0:03:30]} hxg5 {[%emt 0:00:30]} 20. Nd4 {[%emt 0:00:30]} Nxd4 {[%emt 0:04:30]} 21. Qxd4 {[%emt 0:00:30]} Rbd8 {[%emt 0:00:00]} 22. Qc3 {[%emt 0:02:30]} Kh7 {[%emt 0:06:00]} 23. Rad1 {[%emt 0:03:30]} Kg6 {[%emt 0:04:04]} 24. Rxd8 {[%emt 0:09:30]} Rxd8 {[%emt 0:00:02]} 25. Qxa5 {[%emt 0:00:30]} Qd5 {[%emt 0:00:01]} 26. Kg1 {[%emt 0:02:30]} Rh8 {[%emt 0:01:02]} 27. Qb6+ {[%emt 0:04:30]} f6 {[%emt 0:00:01]} 28. Qd6 {[%emt 0:17:39]} Qc4 {[%emt 0:00:03]} 29. e3 {[%emt 0:03:07]} Rxh3 {[%emt 0:00:40]} 30. Kg2 {[%emt 0:00:28]} Rh8 {[%emt 0:02:43]} 31. Qd4 {[%emt 0:00:16]} Qc2 {[%emt 0:08:59]} 32. b4 {[%emt 0:02:41]} Re8 {[%emt 0:02:47]} 33. Qd1 {[%emt 0:01:32]} Qb2 {[%emt 0:01:38]} 34. Rh1 {[%emt 0:00:33]} Kf7 {[%emt 0:01:08]} 35. Qh5+ {[%emt 0:01:04]} Ke7 {[%emt 0:00:15]} 36. Qg6 {[%emt 0:00:44]} Kd8 {[%emt 0:02:07]} 37. Rd1+ {[%emt 0:01:05]} Ke7 {[%emt 0:00:23]} 38. Qxg7+ {[%emt 0:01:37]} 1-0